bitfinex/quotes_BTCUSD_20251031
["timestamp","ask_amount","ask_price","bid_price","bid_amount"]
[1761941206041,0.1832102,109850.0,109840.0,0.12388737]
[1761941206252,0.61112561,109850.0,109840.0,0.12388737]
[1761941206510,0.61112561,109850.0,109840.0,0.11254737]
[1761941206720,0.62615561,109850.0,109840.0,0.11254737]
[1761941207143,0.63855561,109850.0,109840.0,0.11254737]
[1761941207994,0.1956102,109850.0,109840.0,0.11254737]
[1761941208199,0.2106402,109850.0,109840.0,0.11254737]
[1761941208365,0.63855561,109850.0,109840.0,0.11254737]
[1761941208589,0.2106402,109850.0,109840.0,0.11254737]
[1761941209347,0.1956102,109850.0,109840.0,0.11254737]
[1761941209748,0.2106402,109850.0,109840.0,0.11254737]
[1761941211683,0.22491955,109850.0,109840.0,0.11254737]
[1761941216774,0.24794955,109850.0,109840.0,0.11254737]
[1761941216997,1.11011336,109850.0,109840.0,0.006]
[1761941217657,0.90858275,109850.0,109840.0,0.006]
[1761941217846,1.1030492,109850.0,109840.0,0.006]
[1761941219024,1.12857566,109850.0,109840.0,0.006]
[1761941219247,1.14818603,109850.0,109840.0,0.006]
[1761941219465,1.14818603,109850.0,109840.0,0.001]
[1761941219674,1.12857566,109850.0,109840.0,0.001]
[1761941219931,1.12857566,109850.0,109840.0,0.0166]
[1761941220165,1.12857566,109850.0,109840.0,0.04417]
[1761941220166,0.61956413,109850.0,109840.0,0.04417]
[1761941220376,0.57252808,109850.0,109840.0,0.13570737]
[1761941220585,0.57252808,109850.0,109840.0,0.11180737]
[1761941220586,0.58755808,109850.0,109840.0,0.11180737]
[1761941221938,0.59995808,109850.0,109840.0,0.11180737]
[1761941223263,0.60848202,109850.0,109840.0,0.11180737]
[1761941224290,0.62553484,109850.0,109840.0,0.11180737]
[1761941225385,0.64856484,109850.0,109840.0,0.11180737]
[1761941225811,0.64856484,109850.0,109840.0,0.09620737]
[1761941226032,0.64856484,109850.0,109840.0,0.11180737]
[1761941226240,0.62553484,109850.0,109840.0,0.11180737]
[1761941226650,0.64856484,109850.0,109840.0,0.11180737]
[1761941226870,0.64856484,109850.0,109840.0,0.09620737]
[1761941227077,0.66821384,109850.0,109840.0,0.09620737]
[1761941227296,0.66821384,109850.0,109840.0,0.11180737]
[1761941228367,1.15419537,109850.0,109840.0,0.11180737]
[1761941228580,1.13116537,109850.0,109840.0,0.11180737]
[1761941228793,1.15419537,109850.0,109840.0,0.11180737]
[1761941229686,1.15419537,109850.0,109840.0,0.00467]
[1761941229910,0.1820996,109830.0,109820.0,0.09842926]
[1761941230129,0.69390113,109830.0,109820.0,0.09842926]
[1761941230341,0.71693113,109830.0,109820.0,0.09842926]
[1761941230781,0.73121303,109830.0,109820.0,0.11402926]
[1761941231003,0.73121303,109830.0,109820.0,0.00022189]
[1761941231232,0.76739531,109830.0,109820.0,0.00622189]
[1761941231441,1.47728786,109830.0,109820.0,0.00822189]
[1761941231655,1.51401576,109830.0,109820.0,0.00222189]
[1761941232071,1.51401576,109830.0,109820.0,0.00322189]
[1761941232317,1.49694782,109830.0,109820.0,0.00322189]
[1761941232529,1.47728786,109830.0,109820.0,0.00122189]
[1761941234069,1.04935082,109830.0,109820.0,0.00122189]
[1761941234301,1.04935082,109830.0,109820.0,0.09942926]
[1761941234523,1.04935082,109830.0,109820.0,0.09275926]
[1761941234965,1.47728786,109830.0,109820.0,0.09275926]
[1761941235390,1.47728786,109830.0,109820.0,0.00122189]
[1761941238295,1.04935082,109830.0,109820.0,0.00122189]
[1761941238921,1.47728786,109830.0,109820.0,0.00122189]
[1761941240685,0.62141378,109830.0,109820.0,0.01685189]
[1761941240906,1.05099082,109830.0,109820.0,0.02352189]
[1761941241150,1.05099082,109830.0,109820.0,0.09942926]
[1761941241371,1.0509144,109830.0,109820.0,0.09942926]
[1761941241771,1.0509144,109830.0,109820.0,0.11505926]
[1761941246605,0.0142819,109830.0,109820.0,0.34013706]
[1761941246818,0.18208302,109840.0,109830.0,0.1820996]
[1761941247083,0.2182653,109840.0,109830.0,0.2068896]
[1761941247407,0.18208302,109840.0,109830.0,0.2316396]
[1761941247622,0.2182653,109840.0,109830.0,0.2068896]
[1761941248069,0.2192653,109840.0,109830.0,0.2068896]
[1761941248491,0.64812592,109840.0,109830.0,0.2068896]
[1761941248705,0.64812592,109840.0,109830.0,0.2316396]
[1761941249341,0.64812592,109840.0,109830.0,0.2068896]
[1761941249771,0.64712592,109840.0,109830.0,0.2068896]
[1761941249972,0.64612592,109840.0,109830.0,0.2078896]
[1761941250189,0.64612592,109840.0,109830.0,0.2108896]
[1761941251759,0.2182653,109840.0,109830.0,0.2108896]
[1761941251958,0.2182653,109840.0,109830.0,0.05354]
[1761941251959,0.64612592,109840.0,109830.0,0.05354]
[1761941252225,0.64612592,109840.0,109830.0,0.2356396]
[1761941252991,0.64612592,109840.0,109830.0,0.05354]
[1761941253421,0.66269592,109840.0,109830.0,0.02879]
[1761941253592,0.69865592,109840.0,109830.0,0.004]
[1761941254463,0.69865592,109840.0,109830.0,0.001]
[1761941254699,0.69865592,109840.0,109820.0,0.12317926]
[1761941254895,0.60996022,109830.0,109820.0,0.12317926]
[1761941255129,0.42786062,109830.0,109820.0,0.30529545]
[1761941255330,0.64612592,109840.0,109830.0,0.2068896]
[1761941255736,0.64612592,109840.0,109830.0,0.2326396]
[1761941256952,0.94992707,109850.0,109830.0,0.2326396]
[1761941257111,0.55824873,109850.0,109840.0,0.31867039]
[1761941257327,0.98610935,109850.0,109840.0,0.31867039]
[1761941257534,1.02825553,109850.0,109840.0,0.29392039]
[1761941257792,1.01396935,109850.0,109840.0,0.29392039]
[1761941257994,1.01396935,109850.0,109840.0,0.11183737]
[1761941258149,0.67396935,109850.0,109840.0,0.29392039]
[1761941258349,0.67496935,109850.0,109840.0,0.31867039]
[1761941258599,0.67496935,109850.0,109840.0,0.29392039]
[1761941258741,0.61092707,109850.0,109840.0,0.31867039]
[1761941258944,0.61192707,109850.0,109840.0,0.31867039]
[1761941259167,0.18406645,109850.0,109840.0,0.31867039]
[1761941259364,0.18306645,109850.0,109840.0,0.31867039]
[1761941259757,0.002,109850.0,109840.0,0.31867039]
[1761941260158,0.001,109850.0,109840.0,0.31867039]
[1761941260363,0.63141499,109860.0,109840.0,0.31967039]
[1761941260591,1.00759727,109860.0,109850.0,0.02479]
[1761941261348,0.65519727,109860.0,109850.0,0.04954]
[1761941261895,0.65719727,109860.0,109850.0,0.04954]
[1761941262558,0.65619727,109860.0,109850.0,0.04954]
[1761941262703,0.65719727,109860.0,109850.0,0.04954]
[1761941263740,0.65719727,109860.0,109850.0,0.23160645]
[1761941263940,0.18405188,109860.0,109850.0,0.23160645]
[1761941264209,0.6119125,109860.0,109850.0,0.23160645]
[1761941264416,0.002,109860.0,109850.0,0.23160645]
[1761941264562,0.18404988,109860.0,109850.0,0.23160645]
[1761941264773,0.6119105,109860.0,109850.0,0.23160645]
[1761941265134,0.6099105,109860.0,109850.0,0.23160645]
[1761941265407,0.6099105,109860.0,109850.0,0.05054]
[1761941265615,0.6382905,109860.0,109850.0,0.02579]
[1761941265819,0.6611105,109860.0,109850.0,0.02579]
[1761941266041,0.6382905,109860.0,109850.0,0.02579]
[1761941266478,1.08897112,109860.0,109850.0,0.001]
[1761941267727,0.18206645,109850.0,109840.0,0.09620737]
[1761941267932,0.60992707,109850.0,109840.0,0.11934737]
[1761941268116,0.60992707,109850.0,109840.0,0.31712039]
[1761941268312,0.60992707,109850.0,109840.0,0.13503737]
[1761941268694,0.60992707,109850.0,109840.0,0.31712039]
[1761941268887,0.60992707,109850.0,109840.0,0.31812039]
[1761941269079,0.60992707,109850.0,109840.0,0.13603737]
[1761941269305,0.60992707,109850.0,109840.0,0.31812039]
[1761941270342,0.60992707,109850.0,109840.0,0.13603737]
[1761941270757,0.60992707,109850.0,109840.0,0.31812039]
[1761941270971,0.60992707,109850.0,109840.0,0.13603737]
[1761941271144,0.60992707,109850.0,109840.0,0.31812039]
[1761941271352,0.18206645,109850.0,109840.0,0.31812039]
[1761941271592,0.60992707,109850.0,109840.0,0.31812039]
[1761941271735,0.42786062,109850.0,109840.0,0.31812039]
[1761941271939,0.6099105,109860.0,109840.0,0.31812039]
[1761941272141,0.6099105,109860.0,109850.0,0.04799]
[1761941272341,0.6099105,109860.0,109850.0,0.23005645]
[1761941272610,0.63035022,109870.0,109850.0,0.23005645]
[1761941272730,1.0065325,109870.0,109860.0,0.0455]
[1761941273593,1.0464425,109870.0,109860.0,0.02236]
[1761941273770,1.0236225,109870.0,109860.0,0.02136]
[1761941273976,1.0236225,109870.0,109860.0,0.02036]
[1761941274369,1.0246225,109870.0,109860.0,0.02036]
[1761941274573,1.0276225,109870.0,109860.0,0.02036]
[1761941274774,1.04190715,109870.0,109860.0,0.02036]
[1761941275210,1.03790715,109870.0,109860.0,0.02036]
[1761941275391,1.03790715,109870.0,109860.0,0.02136]
[1761941276706,1.06072715,109870.0,109860.0,0.02136]
[1761941277682,1.03790715,109870.0,109860.0,0.02136]
[1761941279179,1.02199715,109870.0,109860.0,0.0445]
[1761941279345,1.03790715,109870.0,109860.0,0.02136]
[1761941280347,1.06072715,109870.0,109860.0,0.001]
[1761941281009,0.63286653,109870.0,109860.0,0.01669]
[1761941281223,1.06072715,109870.0,109860.0,0.001]
[1761941281436,1.48858777,109870.0,109860.0,0.001]
[1761941282010,1.47430312,109870.0,109860.0,0.001]
[1761941282646,3.06610557,109870.0,109860.0,0.001]
[1761941282852,3.50250044,109870.0,109860.0,0.001]
[1761941283051,3.07463982,109870.0,109860.0,0.001]
[1761941283310,0.18206645,109850.0,109840.0,0.11934737]
[1761941283512,0.60992707,109850.0,109840.0,0.11934737]
[1761941283712,0.60992707,109850.0,109840.0,0.11189737]
[1761941284088,0.62583707,109850.0,109840.0,0.11189737]
[1761941284622,0.0002,109880.0,109870.0,0.18203331]
[1761941284857,0.0002,109880.0,109870.0,1.02015249]
[1761941285069,0.0002,109880.0,109870.0,0.5831633]
[1761941285284,0.0002,109880.0,109870.0,1.32409327]
[1761941286151,0.0012,109880.0,109870.0,1.32409327]
[1761941286363,0.0002,109880.0,109870.0,1.32409327]
[1761941286787,0.0002,109880.0,109870.0,1.32709327]
[1761941287168,0.0052,109880.0,109870.0,1.32709327]
[1761941287582,0.0002,109880.0,109870.0,1.32709327]
[1761941288148,0.0002,109880.0,109870.0,1.33409327]
[1761941289845,0.00909752,109920.0,109900.0,0.18196971]
[1761941290061,0.19155942,109920.0,109910.0,0.19765706]
[1761941290271,0.19155942,109920.0,109910.0,0.22079706]
[1761941290495,0.19155942,109920.0,109910.0,0.03883]
[1761941290708,0.18243272,109920.0,109910.0,0.22079706]
[1761941290913,0.18287596,109920.0,109910.0,0.22079706]
[1761941291124,0.19914679,109920.0,109910.0,0.22079706]
[1761941291967,0.19914679,109920.0,109910.0,0.03883]
[1761941292400,0.19914679,109920.0,109910.0,0.02332]
[1761941292401,0.23787679,109920.0,109910.0,0.02332]
[1761941292848,0.23887679,109920.0,109910.0,0.01569]
[1761941293051,1.0096604,109920.0,109910.0,0.02799]
[1761941293271,0.18196706,109910.0,109900.0,0.03077]
[1761941293474,0.93289702,109910.0,109900.0,0.03077]
[1761941293702,0.93289702,109910.0,109900.0,0.04617]
[1761941294119,0.18196706,109910.0,109900.0,0.04617]
[1761941296121,0.18196706,109910.0,109900.0,0.22815362]
[1761941296363,0.18196706,109910.0,109900.0,0.04617]
[1761941297266,0.19760706,109910.0,109900.0,0.04617]
[1761941297516,0.18196706,109910.0,109900.0,0.04617]
[1761941297738,0.94853702,109910.0,109900.0,0.02303]
[1761941298182,0.19760706,109910.0,109900.0,0.02303]
[1761941298444,0.19760706,109910.0,109900.0,0.04628]
[1761941298861,0.1978287,109910.0,109900.0,0.04628]
[1761941299109,0.1821887,109910.0,109900.0,0.22826362]
[1761941300549,0.1821887,109910.0,109900.0,0.04628]
[1761941302632,0.1821887,109910.0,109900.0,0.22826362]
[1761941304578,0.1821887,109910.0,109900.0,0.04628]
[1761941305362,0.60941546,109910.0,109900.0,0.04628]
[1761941307567,0.62368684,109910.0,109900.0,0.04628]
[1761941307772,0.63879684,109910.0,109900.0,0.04628]
[1761941309317,0.6179195,109910.0,109900.0,0.04628]
[1761941309721,0.6330295,109910.0,109900.0,0.04628]
[1761941309936,0.6330295,109910.0,109900.0,0.02303]
[1761941310137,0.6330295,109910.0,109900.0,0.04628]
[1761941310329,0.62452546,109910.0,109900.0,0.04628]
[1761941310535,0.63303105,109910.0,109900.0,0.04628]
[1761941311750,0.61792105,109910.0,109900.0,0.04628]
[1761941312174,0.00872723,109910.0,109900.0,0.33799935]
[1761941312461,0.00872723,109910.0,109900.0,0.31980099]
[1761941313226,0.19069429,109910.0,109900.0,0.31980099]
[1761941313638,0.19069429,109910.0,109900.0,0.32180099]
[1761941313843,0.00872723,109910.0,109900.0,0.32180099]
[1761941314046,0.19069429,109910.0,109900.0,0.32180099]
[1761941314429,0.19069429,109910.0,109900.0,0.32280099]
[1761941315904,0.19069429,109910.0,109900.0,0.14081737]
[1761941316223,0.61792105,109910.0,109900.0,0.32280099]
[1761941319119,0.43595399,109910.0,109900.0,0.32280099]
[1761941319376,0.61792105,109910.0,109900.0,0.32280099]
[1761941321947,0.61792105,109910.0,109900.0,0.14081737]
[1761941322504,0.61792105,109910.0,109900.0,0.04928]
[1761941322718,0.61792105,109910.0,109900.0,0.32280099]
[1761941323346,0.61792105,109910.0,109900.0,0.14081737]
[1761941323575,0.61792105,109910.0,109900.0,0.32280099]
[1761941325916,0.61792105,109910.0,109900.0,0.14081737]
[1761941326125,0.61792105,109910.0,109900.0,0.32280099]
[1761941327499,1.06675781,109910.0,109900.0,0.02603]
[1761941327959,1.06675781,109910.0,109900.0,0.05011]
[1761941328198,0.63953105,109910.0,109900.0,0.05011]
[1761941328418,1.06675781,109910.0,109900.0,0.05011]
[1761941329085,1.08102924,109910.0,109900.0,0.05011]
[1761941329550,1.06534924,109910.0,109900.0,0.05011]
[1761941329770,1.08106466,109910.0,109900.0,0.02603]
[1761941329986,1.08106466,109910.0,109900.0,0.05011]
[1761941330222,1.09534196,109910.0,109900.0,0.05011]
[1761941330431,0.6479079,109910.0,109900.0,0.05011]
[1761941330898,1.07513466,109910.0,109900.0,0.05011]
[1761941332032,1.10511466,109910.0,109900.0,0.003]
[1761941332258,1.14129694,109910.0,109900.0,0.003]
[1761941332479,1.14129694,109910.0,109900.0,0.01868]
[1761941333366,1.14129694,109910.0,109900.0,0.01568]
[1761941335398,1.11724694,109910.0,109900.0,0.01568]
[1761941335667,1.11724694,109910.0,109900.0,0.02801]
[1761941335889,1.10156694,109910.0,109900.0,0.05209]
[1761941336122,1.11724694,109910.0,109900.0,0.05209]
[1761941336579,1.11724694,109910.0,109900.0,0.02801]
[1761941338107,1.11096528,109910.0,109900.0,0.02801]
[1761941339219,1.09669385,109910.0,109900.0,0.02801]
[1761941339589,1.08815284,109910.0,109900.0,0.02801]
[1761941341485,1.07247284,109910.0,109900.0,0.02801]
[1761941341697,1.08815284,109910.0,109900.0,0.02801]
[1761941342245,0.18198362,109900.0,109890.0,0.03638]
[1761941342448,1.03643714,109900.0,109890.0,0.03638]
[1761941342650,0.18198362,109900.0,109890.0,0.23406018]
[1761941342793,1.03643714,109900.0,109890.0,0.05206]
[1761941343431,1.03643714,109900.0,109890.0,0.05406]
[1761941343641,1.03643714,109900.0,109890.0,0.05506]
[1761941345058,3.89086618,109900.0,109890.0,0.003]
[1761941345266,3.91906899,109900.0,109890.0,0.003]
[1761941345417,3.91894843,109900.0,109890.0,0.003]
[1761941345824,0.18201674,109880.0,109870.0,0.03596]
[1761941346045,1.48642702,109880.0,109870.0,0.02756]
[1761941346253,0.18203331,109870.0,109860.0,0.03641]
[1761941346487,0.62747511,109870.0,109860.0,0.03641]
[1761941346698,1.04558648,109870.0,109860.0,0.05209]
[1761941346898,1.03648683,109870.0,109860.0,0.05209]
[1761941347317,1.03648683,109870.0,109860.0,0.02901]
[1761941347318,1.05809683,109870.0,109860.0,0.02901]
[1761941347524,1.39809683,109870.0,109860.0,0.02901]
[1761941347714,1.40977328,109870.0,109860.0,0.05309]
[1761941348756,1.47066272,109870.0,109860.0,0.001]
[1761941348962,1.46163556,109870.0,109860.0,0.01868]
[1761941349253,1.46163556,109870.0,109860.0,0.03101]
[1761941349430,1.46163556,109870.0,109860.0,0.05509]
[1761941349646,1.46163556,109870.0,109860.0,0.03101]
[1761941350227,1.46163556,109870.0,109860.0,0.05509]
[1761941351793,1.48568556,109870.0,109860.0,0.003]
[1761941352041,1.92204295,109870.0,109860.0,0.003]
[1761941352230,1.49481619,109870.0,109860.0,0.003]
[1761941352690,1.49481619,109870.0,109860.0,0.001]
[1761941352891,0.55823216,109860.0,109850.0,0.01233]
[1761941353103,1.43965568,109860.0,109850.0,0.02801]
[1761941354645,0.18206645,109850.0,109840.0,0.01233]
[1761941354856,0.64349825,109850.0,109840.0,0.02745]
[1761941355080,0.62528321,109850.0,109840.0,0.05085]
[1761941355494,0.63665372,109850.0,109840.0,0.05085]
[1761941355697,0.20942696,109850.0,109840.0,0.14238737]
[1761941355911,0.63665372,109850.0,109840.0,0.14438737]
[1761941356362,0.63665372,109850.0,109840.0,0.14538737]
[1761941362741,0.63665372,109850.0,109840.0,0.32747039]
[1761941362958,0.63665372,109850.0,109840.0,0.14538737]
[1761941365550,0.63710188,109850.0,109840.0,0.14538737]
[1761941367176,0.43071749,109850.0,109840.0,0.14538737]
[1761941367396,0.61278394,109850.0,109840.0,0.14538737]
[1761941367814,0.61187361,109850.0,109840.0,0.14538737]
[1761941367957,0.18419869,109850.0,109840.0,0.14538737]
[1761941368172,0.61187361,109850.0,109840.0,0.14538737]
[1761941369402,0.61187361,109850.0,109840.0,0.01533]
[1761941369403,0.63900361,109850.0,109840.0,0.01533]
[1761941369614,0.66192361,109850.0,109840.0,0.003]
[1761941370078,0.63900361,109850.0,109840.0,0.0192]
[1761941370288,0.63900361,109850.0,109840.0,0.03075]
[1761941370519,1.03810589,109850.0,109840.0,0.003]
[1761941371374,1.01518589,109850.0,109840.0,0.03075]
[1761941371584,1.01518589,109850.0,109840.0,0.05563]
[1761941372592,1.03810589,109850.0,109840.0,0.01455]
[1761941372817,1.01518589,109850.0,109840.0,0.03075]
[1761941373022,1.01518589,109850.0,109840.0,0.05563]
[1761941374416,1.02946466,109850.0,109840.0,0.05563]
[1761941374640,1.01362466,109850.0,109840.0,0.05563]
[1761941375337,1.03799544,109850.0,109840.0,0.05563]
[1761941376856,1.01086544,109850.0,109840.0,0.32925039]
[1761941377069,0.20700824,109850.0,109840.0,0.32925039]
[1761941377301,0.63468886,109850.0,109840.0,0.32925039]
[1761941377575,0.20701394,109850.0,109840.0,0.14716737]
[1761941377856,0.20701394,109850.0,109840.0,0.32925039]
[1761941378057,0.19847746,109850.0,109840.0,0.32925039]
[1761941382126,0.01641101,109850.0,109840.0,0.32925039]
[1761941383514,0.19847746,109850.0,109840.0,0.32925039]
[1761941384357,0.01641101,109850.0,109840.0,0.32925039]
[1761941386657,0.19847746,109850.0,109840.0,0.32925039]
[1761941387475,0.01641101,109850.0,109840.0,0.32925039]
[1761941388085,0.62615238,109850.0,109840.0,0.14716737]
[1761941388975,0.64170238,109850.0,109840.0,0.05563]
[1761941389188,0.67688238,109850.0,109840.0,0.003]
[1761941389361,0.67688238,109850.0,109840.0,0.01882]
[1761941390008,0.65299238,109850.0,109840.0,0.01882]
[1761941390143,0.65299238,109850.0,109840.0,0.03056]
[1761941391172,0.99299238,109850.0,109840.0,0.03056]
[1761941391769,1.00152627,109850.0,109840.0,0.03056]
[1761941392164,0.99299238,109850.0,109840.0,0.03056]
[1761941392583,1.05306466,109850.0,109840.0,0.003]
[1761941392800,1.05306466,109850.0,109840.0,0.01882]
[1761941393204,1.05306466,109850.0,109840.0,0.003]
[1761941393569,1.05306466,109850.0,109840.0,0.002]
[1761941393970,0.5582653,109840.0,109830.0,0.00193554]
[1761941394210,1.48829503,109840.0,109830.0,0.00207929]
[1761941394594,1.51566123,109840.0,109830.0,0.00207929]
[1761941395179,1.51566123,109840.0,109830.0,0.00407929]
[1761941395683,1.08798631,109840.0,109830.0,0.00407929]
[1761941395878,1.51566123,109840.0,109830.0,0.00407929]
[1761941396294,1.50712892,109840.0,109830.0,0.00507929]
[1761941396545,1.51565017,109840.0,109830.0,0.00507929]
[1761941396751,1.05979642,109840.0,109830.0,0.00507929]
[1761941396997,1.03590642,109840.0,109830.0,0.03063929]
[1761941397222,1.03790642,109840.0,109830.0,0.05315929]
[1761941397428,1.03890642,109840.0,109830.0,0.05315929]
[1761941397637,1.03890642,109840.0,109830.0,0.02963929]
[1761941398053,1.03690642,109840.0,109830.0,0.02963929]
[1761941398244,1.03590642,109840.0,109830.0,0.02963929]
[1761941398919,0.5926815,109840.0,109830.0,0.02963929]
[1761941399065,1.01330642,109840.0,109830.0,0.05315929]
[1761941399276,1.02885642,109840.0,109830.0,0.05315929]
[1761941399836,1.01330642,109840.0,109830.0,0.23525889]
[1761941400037,0.63712414,109840.0,109830.0,0.05315929]
[1761941400291,0.63712414,109840.0,109830.0,0.23525889]
[1761941400662,0.45504112,109840.0,109830.0,0.23525889]
[1761941400855,0.63712414,109840.0,109830.0,0.23525889]
[1761941401287,0.63712414,109840.0,109830.0,0.05315929]
[1761941402427,0.63712414,109840.0,109830.0,0.23525889]
[1761941402632,0.45504112,109840.0,109830.0,0.23525889]
[1761941402842,0.45504112,109840.0,109830.0,0.23625889]
[1761941403127,0.0273662,109840.0,109830.0,0.23625889]
[1761941403325,0.60974137,109850.0,109830.0,0.23825889]
[1761941403529,0.6371032,109850.0,109840.0,0.23316302]
[1761941403734,0.6371032,109850.0,109840.0,0.05108]
[1761941404823,0.65138216,109850.0,109840.0,0.05108]
[1761941405034,0.65138216,109850.0,109840.0,0.23316302]
[1761941405438,0.65138216,109850.0,109840.0,0.05108]
[1761941405678,0.02736183,109850.0,109840.0,0.32470039]
[1761941405907,0.18203331,109870.0,109850.0,0.18205547]
[1761941406130,0.22366955,109870.0,109860.0,0.20656988]
[1761941406343,0.62398645,109870.0,109860.0,0.23008988]
[1761941406550,0.62398645,109870.0,109860.0,0.04804]
[1761941406761,0.62398645,109870.0,109860.0,0.23008988]
[1761941407208,0.62398645,109870.0,109860.0,0.04804]
[1761941408064,0.62398645,109870.0,109860.0,0.23008988]
[1761941408299,0.44195314,109870.0,109860.0,0.23008988]
[1761941408747,0.62398645,109870.0,109860.0,0.04804]
[1761941408959,0.63953645,109870.0,109860.0,0.04804]
[1761941409379,0.67471645,109870.0,109860.0,0.02452]
[1761941409660,0.18204988,109860.0,109850.0,0.03222]
[1761941409877,1.07709476,109860.0,109850.0,0.02452]
[1761941410106,0.18206645,109850.0,109840.0,0.03526]
[1761941410324,0.62529137,109850.0,109840.0,0.05108]
[1761941410546,0.66047137,109850.0,109840.0,0.01174]
[1761941411020,1.00047137,109850.0,109840.0,0.01174]
[1761941411242,1.00047137,109850.0,109840.0,0.02756]
[1761941411243,0.97658137,109850.0,109840.0,0.02756]
[1761941411455,0.94974137,109850.0,109840.0,0.05108]
[1761941412371,0.97658137,109850.0,109840.0,0.02756]
[1761941412780,0.97658137,109850.0,109840.0,0.02956]
[1761941412998,0.94974137,109850.0,109840.0,0.32670039]
[1761941413429,0.96402032,109850.0,109840.0,0.32770039]
[1761941414056,0.96402032,109850.0,109840.0,0.14561737]
[1761941415086,0.5363454,109850.0,109840.0,0.32770039]
[1761941415290,0.44195387,109850.0,109840.0,0.32770039]
[1761941415467,0.62402032,109850.0,109840.0,0.32770039]
[1761941415698,0.44195387,109850.0,109840.0,0.32770039]
[1761941416316,0.62402032,109850.0,109840.0,0.32770039]
[1761941416501,0.01427895,109850.0,109840.0,0.32770039]
[1761941416738,0.1963454,109850.0,109840.0,0.32770039]
[1761941417355,0.60225884,109860.0,109840.0,0.32770039]
[1761941417559,0.18206645,109850.0,109840.0,0.28836039]
[1761941417902,0.18206645,109850.0,109840.0,0.30404039]
[1761941418114,0.18206645,109850.0,109840.0,0.32878039]
[1761941418313,0.18206645,109850.0,109840.0,0.32678039]
[1761941418899,0.18206645,109850.0,109840.0,0.32578039]
[1761941419478,0.61653725,109860.0,109850.0,0.18206645]
[1761941419683,0.62400321,109860.0,109850.0,0.23322645]
[1761941419929,0.44195333,109860.0,109850.0,0.23322645]
[1761941420336,0.01427841,109860.0,109850.0,0.23322645]
[1761941420877,0.64589051,109870.0,109860.0,0.18204988]
[1761941421228,0.64589051,109870.0,109860.0,0.32474725]
[1761941421925,0.60970823,109870.0,109860.0,0.32474725]
[1761941422329,0.61270823,109870.0,109860.0,0.32474725]
[1761941422536,0.62822823,109870.0,109860.0,0.14269737]
[1761941422744,0.63315823,109870.0,109860.0,0.02812]
[1761941422889,0.63115823,109870.0,109860.0,0.05216]
[1761941423092,0.63115823,109870.0,109860.0,0.05416]
[1761941423715,0.61563823,109870.0,109860.0,0.32774725]
[1761941423929,0.60970823,109870.0,109860.0,0.32774725]
[1761941425509,0.60956891,109870.0,109860.0,0.32774725]
[1761941427377,0.60956891,109870.0,109860.0,0.14569737]
[1761941428985,0.60956891,109870.0,109860.0,0.32774725]
[1761941430454,0.18203331,109870.0,109860.0,0.32774725]
[1761941430881,0.60956891,109870.0,109860.0,0.32774725]
[1761941431125,0.18203331,109870.0,109860.0,0.32774725]
[1761941431339,0.60956891,109870.0,109860.0,0.32774725]
[1761941431569,0.60956891,109870.0,109860.0,0.14569737]
[1761941431787,0.60956891,109870.0,109860.0,0.32774725]
[1761941432008,0.63101891,109870.0,109860.0,0.03112]
[1761941432478,0.63101891,109870.0,109860.0,0.05416]
[1761941432694,1.05855451,109870.0,109860.0,0.05416]
[1761941435607,0.63101891,109870.0,109860.0,0.05416]
[1761941435787,0.61549891,109870.0,109860.0,0.05416]
[1761941438566,0.60956891,109870.0,109860.0,0.05416]
[1761941438771,0.4275356,109870.0,109860.0,0.32774725]
[1761941440150,0.60956891,109870.0,109860.0,0.32774725]
[1761941440353,0.4275356,109870.0,109860.0,0.32774725]
[1761941440777,0.01428179,109880.0,109870.0,0.18203331]
[1761941440997,0.64602295,109900.0,109890.0,0.18200018]
[1761941440998,0.4275356,109900.0,109890.0,0.18200018]
[1761941441216,0.4275356,109900.0,109890.0,0.29931755]
[1761941441446,0.4275356,109900.0,109890.0,0.32235755]
[1761941441667,0.4275356,109910.0,109900.0,0.18198362]
[1761941441847,0.60950266,109910.0,109900.0,0.21650362]
[1761941442078,0.60998488,109910.0,109900.0,0.23314362]
[1761941442292,0.18244928,109910.0,109900.0,0.23314362]
[1761941442533,0.60998488,109910.0,109900.0,0.23314362]
[1761941442742,0.62425665,109910.0,109900.0,0.23314362]
[1761941443169,0.44228959,109910.0,109900.0,0.23314362]
[1761941443371,0.62425665,109910.0,109900.0,0.23314362]
[1761941443982,0.62525665,109910.0,109900.0,0.23314362]
[1761941444402,0.44328959,109910.0,109900.0,0.23314362]
[1761941445442,0.62525665,109910.0,109900.0,0.23314362]
[1761941445647,0.62525665,109910.0,109900.0,0.05116]
[1761941446055,0.62525665,109910.0,109900.0,0.23314362]
[1761941446260,0.62525665,109910.0,109900.0,0.05116]
[1761941448047,0.62525665,109910.0,109900.0,0.23314362]
[1761941451827,0.19772105,109910.0,109900.0,0.23314362]
[1761941452055,0.62525665,109910.0,109900.0,0.23314362]
[1761941452304,0.62525665,109910.0,109900.0,0.05116]
[1761941452760,0.64661665,109910.0,109900.0,0.02812]
[1761941453607,0.63234488,109910.0,109900.0,0.05086]
[1761941454857,0.64662275,109910.0,109900.0,0.05086]
[1761941455296,0.63119275,109910.0,109900.0,0.05086]
[1761941455518,0.01576009,109910.0,109900.0,0.23284362]
[1761941455733,0.00148222,109910.0,109900.0,0.23284362]
[1761941456147,0.42801782,109910.0,109900.0,0.23284362]
[1761941456567,0.42801782,109910.0,109900.0,0.23684362]
[1761941456779,0.60998488,109910.0,109900.0,0.05486]
[1761941456995,0.00048222,109910.0,109900.0,0.21410362]
[1761941457200,0.00048222,109910.0,109900.0,0.23684362]
[1761941457418,0.60998488,109910.0,109900.0,0.23684362]
[1761941457706,0.60998488,109910.0,109900.0,0.23884362]
[1761941458634,0.42801782,109910.0,109900.0,0.23884362]
[1761941459953,0.60998488,109910.0,109900.0,0.23884362]
[1761941460835,0.60998488,109910.0,109900.0,0.05686]
[1761941461287,0.60998488,109910.0,109900.0,0.23884362]
[1761941462939,0.60998488,109910.0,109900.0,0.05686]
[1761941463065,0.18244928,109910.0,109900.0,0.05686]
[1761941463292,0.60998488,109910.0,109900.0,0.23884362]
[1761941463512,0.62425604,109910.0,109900.0,0.23884362]
[1761941465860,0.62425604,109910.0,109900.0,0.05686]
[1761941466287,1.09781164,109910.0,109900.0,0.18798362]
[1761941466508,0.64673604,109910.0,109900.0,0.03474]
[1761941467160,0.64673604,109910.0,109900.0,0.03074]
[1761941467386,0.62425604,109910.0,109900.0,0.23446362]
[1761941467831,0.62425604,109910.0,109900.0,0.23546362]
[1761941469121,0.63276336,109910.0,109900.0,0.23546362]
[1761941470858,0.63276336,109910.0,109900.0,0.05348]
[1761941471069,0.63276336,109910.0,109900.0,0.23546362]
[1761941474182,0.4507963,109910.0,109900.0,0.23546362]